bitfinex/quotes_SOLUSD_20240729
["timestamp","ask_amount","ask_price","bid_price","bid_amount"]
[1722256731042,73.4856678,192.41,192.4,1.91734546]
[1722256731421,80.05669853,192.41,192.4,1.91734546]
[1722256731745,46.92,192.34,192.23,6.311]
[1722256732044,53.3156678,192.34,192.23,6.311]
[1722256732254,73.4856678,192.34,192.23,6.311]
[1722256732619,80.05669853,192.34,192.23,6.311]
[1722256732821,80.22669853,192.34,192.22,15.7682]
[1722256733249,109.51669853,192.34,192.22,15.7682]
[1722256733552,109.51669853,192.34,192.18,6.311]
[1722256734738,31.28,192.32,192.18,6.311]
[1722256734968,46.92,192.27,192.18,7.35143458]
[1722256735139,46.92,192.27,192.18,6.311]
[1722256735449,73.3156678,192.27,192.18,6.311]
[1722256735819,73.3156678,192.27,192.18,7.35138128]
[1722256736243,73.3156678,192.27,192.18,6.311]
[1722256736451,73.4856678,192.27,192.18,6.311]
[1722256736640,73.4856678,192.27,192.17,15.3475]
[1722256736946,80.05669853,192.27,192.17,15.3475]
[1722256737547,80.05669853,192.27,192.18,1.04058817]
[1722256737748,80.05669853,192.27,192.17,15.3475]
[1722256737951,80.22669853,192.27,192.17,15.3475]
[1722256739863,84.38749853,192.27,192.26,0.63911216]
[1722256740248,80.22669853,192.27,192.26,0.63911216]
[1722256740753,85.66702091,192.27,192.26,0.63911216]
[1722256740972,89.82782091,192.27,192.26,0.63911216]
[1722256741554,85.66702091,192.27,192.13,7.0240712]
[1722256741735,15.64,192.2,192.13,7.0240712]
[1722256741940,15.64,192.18,192.13,7.0240712]
[1722256742138,15.64,192.18,192.14,1.04076232]
[1722256742863,46.92,192.24,192.14,1.04076232]
[1722256743167,6.3956678,192.24,192.13,7.1940712]
[1722256743348,6.3956678,192.24,192.14,0.17]
[1722256743673,31.28,192.23,192.13,7.0240712]
[1722256743968,15.64,192.21,192.14,1.04069405]
[1722256744139,15.64,192.21,192.13,7.0240712]
[1722256744338,15.64,192.21,192.14,1.04066186]
[1722256744639,15.64,192.21,192.14,1.21066186]
[1722256744856,6.3956678,192.22,192.14,1.21066186]
[1722256745078,31.28,192.25,192.14,1.21066186]
[1722256745571,37.6756678,192.24,192.13,0.7962712]
[1722256745767,37.6756678,192.24,192.14,1.04057476]
[1722256746075,15.64,192.23,192.14,1.04057476]
[1722256746870,6.3956678,192.24,192.15,0.17]
[1722256747039,1.61258864,192.25,192.15,1.21045266]
[1722256747238,1.61258864,192.25,192.16,0.17]
[1722256747442,1.61258864,192.25,192.15,0.17]
[1722256747675,1.61258864,192.25,192.14,0.34]
[1722256748068,1.61258864,192.25,192.16,15.8321]
[1722256748241,1.61258864,192.25,192.17,1.38031027]
[1722256748442,37.6756678,192.33,192.19,6.2337]
[1722256748758,37.6756678,192.33,192.2,1.21025185]
[1722256748945,15.64,192.32,192.21,17.25629666]
[1722256749150,15.64,192.32,192.22,0.17]
[1722256749343,15.64,192.32,192.22,0.34]
[1722256749763,6.3956678,192.33,192.23,6.3546]
[1722256749944,31.28,192.36,192.24,0.17]
[1722256750163,15.64,192.35,192.24,0.17]
[1722256750350,15.64,192.35,192.24,1.2099563]
[1722256750824,15.64,192.35,192.24,0.17]
[1722256750942,6.3956678,192.34,192.24,0.17]
[1722256751144,46.92,192.33,192.24,0.17]
[1722256751353,46.92,192.33,192.24,1.21015291]
[1722256751671,46.92,192.33,192.24,1.04015123]
[1722256751871,15.64,192.33,192.24,1.04015123]
[1722256752048,20.0,192.32,192.25,0.17]
[1722256752680,35.64,192.32,192.25,1.03995992]
[1722256752849,35.64,192.32,192.24,0.17]
[1722256753055,22.0356678,192.31,192.23,6.3546]
[1722256753368,15.64,192.31,192.24,1.04016048]
[1722256753871,15.64,192.31,192.23,6.3546]
[1722256753872,22.0356678,192.31,192.23,6.3546]
[1722256754044,42.0356678,192.3,192.23,6.3546]
[1722256754250,46.92,192.28,192.23,6.3546]
[1722256754459,20.0,192.29,192.21,16.2161]
[1722256754460,46.92,192.26,192.21,16.2161]
[1722256754754,15.64,192.24,192.21,16.2161]
[1722256755777,15.64,192.22,192.18,6.2638]
[1722256756868,15.64,192.21,192.18,6.2638]
[1722256757163,15.64,192.21,192.16,15.3613]
[1722256757966,46.92,192.23,192.16,15.3613]
[1722256758469,15.64,192.24,192.16,15.3613]
[1722256758872,20.0,192.23,192.17,1.04055714]
[1722256759085,20.0,192.29,192.17,1.04055714]
[1722256759261,20.0,192.29,192.16,15.3613]
[1722256759262,20.0,192.29,192.18,0.17]
[1722256759455,20.0,192.29,192.17,0.17]
[1722256759761,15.64,192.28,192.17,1.21043686]
[1722256760074,15.64,192.28,192.18,6.5974]
[1722256760256,6.3956678,192.32,192.19,1.21028207]
[1722256760575,15.64,192.29,192.19,1.21028207]
[1722256761065,15.64,192.29,192.2,1.04027764]
[1722256761656,15.64,192.28,192.19,0.17]
[1722256761958,15.64,192.28,192.19,1.2102786]
[1722256762157,15.64,192.28,192.19,0.17]
[1722256762564,15.64,192.28,192.19,1.21028629]
[1722256763075,20.0,192.27,192.19,1.21028629]
[1722256763465,20.0,192.27,192.19,0.17]
[1722256763681,20.0,192.27,192.19,1.21028663]
[1722256763974,15.64,192.3,192.19,1.21028663]
[1722256764191,31.28,192.33,192.2,16.2779]
[1722256764477,31.28,192.33,192.21,1.21010239]
[1722256764849,31.28,192.35,192.21,1.21010239]
[1722256765049,31.28,192.35,192.22,6.2969]
[1722256765050,15.64,192.34,192.22,6.2969]
[1722256765254,37.6756678,192.38,192.24,16.2779]
[1722256765562,37.6756678,192.38,192.26,6.2969]
[1722256765762,37.6756678,192.38,192.27,1.03991216]
[1722256766280,15.64,192.37,192.28,0.17]
[1722256766463,15.64,192.37,192.28,1.20986758]
[1722256767281,31.28,192.4,192.28,0.17]
[1722256767282,20.0,192.36,192.28,0.17]
[1722256767572,20.0,192.36,192.26,6.2969]
[1722256767573,35.64,192.38,192.27,1.37977368]
[1722256767780,15.64,192.38,192.27,1.37977368]
[1722256768094,46.92,192.4,192.29,6.2969]
[1722256768260,46.92,192.4,192.3,0.17]
[1722256768461,46.92,192.44,192.3,1.20967042]
[1722256768655,12.96669853,192.46,192.35,22.165]
[1722256768656,6.3956678,192.46,192.35,22.165]
[1722256768863,15.64,192.52,192.35,22.165]
[1722256769081,15.64,192.48,192.35,22.165]
[1722256769273,15.64,192.44,192.35,22.165]
[1722256769579,29.29,192.45,192.35,22.165]
[1722256769580,46.91,192.42,192.35,22.165]
[1722256770158,15.64,192.4,192.35,22.165]
[1722256770765,15.64,192.38,192.35,22.165]
[1722256773980,31.27,192.44,192.36,1.03972474]
[1722256774169,31.27,192.44,192.35,22.165]
[1722256774355,20.0,192.43,192.35,22.165]
[1722256775467,35.64,192.43,192.35,22.165]
[1722256775664,35.64,192.43,192.36,1.03954559]
[1722256776002,35.64,192.43,192.35,22.335]
[1722256776581,20.0,192.43,192.35,22.335]
[1722256776903,2.15186037,192.5,192.35,22.335]
[1722256776904,29.29,192.54,192.36,1.37944596]
[1722256777275,30.90258864,192.54,192.36,1.37944596]
[1722256777693,46.91,192.53,192.37,6.2846]
[1722256777996,46.91,192.53,192.38,1.37919357]
[1722256778887,46.91,192.53,192.4,6.2035]
[1722256779102,46.91,192.53,192.41,0.34]
[1722256779482,15.64,192.53,192.42,1.03903042]
[1722256779696,15.64,192.54,192.43,0.34]
[1722256780014,15.64,192.54,192.44,0.17]
[1722256780984,15.64,192.54,192.44,1.20889628]
[1722256781197,15.64,192.54,192.44,0.17]
[1722256781688,35.64,192.53,192.44,0.17]
[1722256782004,15.64,192.53,192.44,0.17]
[1722256782240,35.64,192.52,192.44,0.17]
[1722256783397,20.0,192.52,192.44,0.17]
[1722256783805,35.64,192.54,192.44,0.17]
[1722256784207,20.0,192.54,192.45,22.8211]
[1722256784429,31.27,192.58,192.46,1.20886739]
[1722256784592,31.27,192.62,192.46,1.20886739]
[1722256785302,31.27,192.58,192.46,0.17]
[1722256785496,15.64,192.57,192.46,0.34]
[1722256785709,35.64,192.56,192.46,0.34]
[1722256786224,20.0,192.56,192.46,1.37878775]
[1722256786444,20.0,192.57,192.46,1.37878775]
[1722256786812,20.0,192.57,192.46,0.34]
[1722256787218,31.27,192.6,192.46,0.34]
[1722256787537,15.64,192.58,192.46,0.34]
[1722256787731,20.0,192.57,192.46,0.34]
[1722256788026,15.64,192.56,192.46,0.34]
[1722256788393,15.64,192.56,192.46,0.17]
[1722256788938,35.64,192.55,192.46,0.17]
[1722256789096,45.0,192.54,192.46,0.17]
[1722256789298,60.64,192.54,192.46,0.17]
[1722256789723,60.64,192.54,192.46,1.20886878]
[1722256789919,45.0,192.54,192.46,0.17]
[1722256790120,5.43800114,192.66,192.47,21.7559]
[1722256790121,31.26785133,192.63,192.47,21.7559]
[1722256790311,31.26785133,192.63,192.48,1.37858222]
[1722256790520,5.91453073,192.68,192.48,1.37858222]
[1722256790739,5.91453073,192.68,192.49,21.7559]
[1722256791027,46.91,192.65,192.5,1.37847848]
[1722256791201,15.64,192.65,192.52,15.5308]
[1722256791407,15.64,192.65,192.55,15.5308]
[1722256791622,15.64,192.65,192.56,0.17]
[1722256791922,29.21,192.7,192.56,0.34]
[1722256792098,46.91,192.69,192.56,0.34]
[1722256792298,46.91,192.69,192.56,0.17]
[1722256792534,56.49970114,192.69,192.56,0.17]
[1722256792730,46.91,192.67,192.56,0.17]
[1722256792899,15.64,192.65,192.56,0.17]
[1722256793127,51.27,192.66,192.56,0.17]
[1722256793128,15.64,192.63,192.56,0.17]
[1722256793305,80.64,192.62,192.55,15.5308]
[1722256793510,60.64,192.62,192.55,15.5308]
[1722256793720,60.64,192.62,192.56,1.03849708]
[1722256794116,35.64,192.61,192.55,15.5308]
[1722256794322,45.0,192.6,192.55,15.5308]
[1722256794843,60.64,192.6,192.55,15.5308]
[1722256795021,35.64,192.59,192.55,15.5308]
[1722256795212,45.0,192.58,192.55,15.5308]
[1722256796530,60.64,192.58,192.55,15.5308]
[1722256799132,45.0,192.58,192.55,15.5308]
[1722256801027,60.64,192.58,192.55,15.5308]
[1722256802627,60.64,192.58,192.51,16.4616]
[1722256802628,91.91,192.58,192.51,16.4616]
[1722256802830,15.64,192.56,192.51,16.4616]
[1722256803009,60.64,192.55,192.51,16.4616]
[1722256805443,91.91,192.55,192.51,16.4616]
[1722256805626,15.64,192.53,192.51,16.4616]
[1722256805824,60.64,192.52,192.51,16.4616]
[1722256806622,60.64,192.52,192.49,6.4294]
[1722256806824,91.91,192.52,192.46,16.3185]
[1722256807043,15.64,192.5,192.46,16.3185]
[1722256807230,15.64,192.48,192.46,16.3185]
[1722256807455,46.91,192.48,192.45,6.3789]
[1722256807632,15.64,192.46,192.45,6.3789]
[1722256807938,60.64,192.46,192.45,6.3789]
[1722256809242,45.0,192.46,192.45,6.3789]
[1722256810518,60.64,192.46,192.45,6.3789]
[1722256810717,60.64,192.46,192.41,21.803]
[1722256811037,45.0,192.45,192.41,21.803]
[1722256811639,45.0,192.45,192.42,1.03922757]
[1722256811840,31.27,192.53,192.43,0.17]
[1722256812035,15.64,192.51,192.43,0.17]
[1722256812350,31.27,192.53,192.43,0.17]
[1722256812351,35.64,192.5,192.43,0.17]
[1722256813727,45.0,192.49,192.43,0.17]
[1722256814133,45.0,192.49,192.42,0.17]
[1722256815517,60.64,192.49,192.41,21.803]
[1722256818241,45.0,192.49,192.41,21.803]
[1722256818544,45.0,192.49,192.42,0.17]
[1722256818725,60.64,192.49,192.42,0.17]
[1722256818925,60.64,192.49,192.41,21.803]
[1722256819330,60.64,192.49,192.42,1.03923002]
[1722256819845,60.64,192.49,192.41,21.803]
[1722256820047,15.64,192.47,192.41,21.803]
[1722256820252,45.0,192.46,192.41,21.803]
[1722256821731,60.64,192.46,192.41,21.803]
[1722256825240,35.64,192.45,192.41,21.803]
[1722256825450,45.0,192.44,192.41,21.803]
[1722256826867,60.64,192.44,192.37,22.1924]
[1722256827159,91.91,192.44,192.37,22.1924]
[1722256827342,15.64,192.42,192.37,22.1924]
[1722256827543,45.0,192.41,192.37,22.1924]
[1722256827740,60.64,192.41,192.37,22.1924]
[1722256828760,15.64,192.39,192.37,16.1503]
[1722256828968,45.0,192.38,192.33,21.7106]
[1722256829263,60.64,192.38,192.33,21.7106]
[1722256830044,60.64,192.38,192.29,22.0682]
[1722256830045,41.6,192.36,192.29,22.0682]
[1722256830246,15.64,192.34,192.29,22.0682]
[1722256830770,45.0,192.33,192.29,22.0682]
[1722256831476,60.64,192.34,192.29,22.0682]
[1722256831857,41.6,192.33,192.17,22.6275]
[1722256832059,60.64,192.32,192.17,22.6275]
[1722256832250,15.64,192.29,192.17,22.6275]
[1722256832447,25.96,192.27,192.17,22.6275]
[1722256832876,45.0,192.26,192.17,22.6275]
[1722256833176,15.64,192.25,192.17,22.6275]
[1722256833375,60.64,192.24,192.17,22.6275]
[1722256834572,91.91,192.24,192.17,22.6275]
[1722256834764,15.64,192.2,192.13,0.7962712]
[1722256835149,65.0,192.19,192.13,0.7962712]
[1722256835348,45.0,192.19,192.13,0.7962712]
[1722256836793,15.64,192.26,192.14,0.17]
[1722256837076,25.96,192.27,192.14,1.38049899]
[1722256837252,41.6,192.27,192.14,1.38049899]
[1722256837457,41.6,192.27,192.14,0.34]
[1722256838579,60.64,192.26,192.14,0.34]
[1722256839394,15.64,192.24,192.14,0.17]
[1722256839674,45.0,192.23,192.14,0.17]
[1722256839883,60.64,192.24,192.14,0.17]
[1722256840099,45.0,192.24,192.14,0.34]
[1722256840474,45.0,192.24,192.15,1.04047342]
[1722256840666,45.0,192.24,192.16,0.17]
[1722256841361,45.0,192.24,192.15,0.34]
[1722256841561,45.0,192.24,192.15,0.17]
[1722256841778,45.0,192.24,192.14,0.34]
[1722256842658,60.64,192.24,192.14,0.34]
[1722256842859,86.6,192.24,192.14,0.17]
[1722256843360,35.64,192.23,192.14,0.17]
[1722256843576,45.0,192.22,192.14,0.17]
[1722256846179,15.64,192.21,192.13,1.83700353]
[1722256846483,45.0,192.2,192.13,0.7962712]
[1722256847382,45.0,192.2,192.14,0.17]
[1722256848096,35.64,192.25,192.14,0.34]
[1722256848972,35.64,192.25,192.14,0.17]
[1722256849563,41.78939002,192.25,192.14,0.17]
[1722256849759,117.87,192.24,192.13,0.7962712]
[1722256849978,15.64,192.22,192.13,0.7962712]
[1722256850170,45.0,192.21,192.13,0.7962712]
[1722256850580,86.6,192.21,192.13,0.7962712]
[1722256850783,92.74939002,192.21,192.13,0.7962712]
[1722256850975,124.01939002,192.21,192.13,0.7962712]
[1722256851166,15.64,192.19,192.13,0.7962712]
[1722256851366,45.0,192.18,192.13,0.7962712]
[1722256852470,60.64,192.19,192.13,0.7962712]
[1722256852995,41.6,192.18,192.13,0.7962712]
[1722256853289,60.64,192.17,192.13,0.7962712]
[1722256857086,45.0,192.17,192.13,0.7962712]
[1722256858384,60.64,192.17,192.13,0.7962712]
[1722256858989,45.0,192.17,192.13,0.7962712]
[1722256860507,60.64,192.17,192.13,0.7962712]
[1722256861393,45.0,192.17,192.13,0.7962712]
[1722256861582,60.64,192.17,192.13,0.7962712]
[1722256862294,45.0,192.17,192.13,0.7962712]
[1722256862890,31.27,192.24,192.13,0.7962712]
[1722256863077,31.27,192.24,192.15,22.1842]
[1722256863508,15.64,192.23,192.15,22.1842]
[1722256863705,46.91,192.23,192.15,22.1842]
[1722256864382,46.91,192.21,192.15,22.1842]
[1722256864574,15.64,192.19,192.15,22.1842]
[1722256864779,45.0,192.18,192.15,22.1842]
[1722256864992,20.0,192.2,192.15,22.1842]
[1722256865187,31.27,192.24,192.15,22.1842]
[1722256865374,33.37301658,192.27,192.15,22.1842]
[1722256865600,0.17,192.26,192.15,22.1842]
[1722256865898,15.64,192.24,192.15,22.1842]
[1722256866084,46.91,192.24,192.15,22.1842]
[1722256866287,45.0,192.23,192.15,22.1842]
[1722256866609,15.64,192.22,192.15,22.1842]
[1722256866782,45.0,192.21,192.15,22.1842]
[1722256867301,15.64,192.2,192.15,22.1842]
[1722256867526,60.64,192.19,192.15,22.1842]
[1722256867801,45.0,192.18,192.15,22.1842]
[1722256867982,60.64,192.21,192.15,22.1842]
[1722256870305,15.64,192.19,192.13,0.7962712]
[1722256870511,15.64,192.17,192.13,0.7962712]
[1722256870884,45.0,192.16,192.13,0.7962712]
[1722256875384,45.0,192.16,192.13,0.2962712]
[1722256877013,15.64,192.21,192.13,0.2962712]
[1722256877385,35.64,192.2,192.13,0.2962712]
[1722256878332,60.64,192.19,192.13,0.2962712]
[1722256879795,46.91,192.14,192.02,23.2627]
[1722256880201,15.64,192.12,192.02,23.2627]
[1722256880405,60.64,192.11,192.02,23.2627]
[1722256880605,91.91,192.11,192.02,23.2627]
[1722256880807,15.64,192.09,192.02,23.2627]
[1722256881114,15.64,192.07,192.02,23.2627]
[1722256881289,45.0,192.06,192.02,23.2627]
[1722256883716,60.64,192.06,192.02,23.2627]
[1722256884214,91.91,192.06,192.02,23.2627]
[1722256885802,15.64,192.04,192.02,23.2627]
[1722256886005,45.0,192.03,192.02,23.2627]
[1722256886205,45.0,192.03,191.97,2.7395424]
[1722256886206,45.0,192.03,191.97,24.1033424]
[1722256886507,60.64,192.03,191.97,24.1033424]
[1722256888115,45.0,192.03,191.97,24.1033424]
[1722256888421,45.0,192.04,191.97,24.1033424]
[1722256889294,15.64,192.03,191.97,24.1033424]
[1722256889495,45.0,192.04,191.97,24.1033424]
[1722256889496,60.64,192.02,191.97,24.1033424]
[1722256889805,45.0,192.01,191.97,24.1033424]
[1722256890418,15.64,192.0,191.97,24.1033424]
[1722256890602,60.64,191.99,191.97,24.1033424]
[1722256890995,45.0,191.99,191.97,24.1033424]
[1722256891202,20.0,192.05,191.97,24.1033424]
[1722256891505,0.17,192.04,191.97,17.7494424]
[1722256892225,47.08,192.04,191.97,17.7494424]
[1722256892597,15.64,192.02,191.97,17.7494424]
[1722256892797,80.64,192.01,191.97,17.7494424]
[1722256893305,15.64,191.99,191.97,2.7395424]
[1722256893501,31.27,192.0,191.97,2.7395424]
[1722256893502,60.64,191.98,191.97,2.7395424]
[1722256896426,80.64,191.98,191.97,2.7395424]
[1722256896803,111.91,191.98,191.97,2.7395424]
[1722256897004,112.08,191.98,191.97,2.7395424]
[1722256897910,112.25,191.98,191.97,2.7395424]
[1722256898104,112.08,191.98,191.97,2.7395424]
[1722256898501,112.25,191.98,191.97,2.7395424]
[1722256899619,118.05774735,191.98,191.97,2.7395424]
[1722256900729,122.22484735,191.98,191.97,2.7395424]
[1722256901233,118.05774735,191.98,191.97,2.7395424]
[1722256901902,123.46076179,191.98,191.97,2.7395424]
[1722256902240,127.62786179,191.98,191.97,2.7395424]
[1722256903110,123.46076179,191.98,191.97,2.7395424]
[1722256903432,51.0777,191.95,191.94,0.7962712]
[1722256903615,71.4177,191.95,191.94,0.7962712]
[1722256903932,77.22544735,191.95,191.94,0.7962712]
[1722256904338,67.25,191.95,191.94,0.7962712]
[1722256904912,71.4177,191.95,191.94,0.7962712]
[1722256905328,123.6015959,191.95,191.94,0.7962712]
[1722256906013,119.4338959,191.95,191.83,7.85363457]
[1722256906209,46.91,191.89,191.83,7.85363457]
[1722256906534,15.64,191.87,191.83,7.85363457]
[1722256906936,65.0,191.86,191.83,7.85363457]
[1722256907816,80.64,191.86,191.83,7.85363457]
[1722256910248,65.0,191.86,191.83,7.85363457]
[1722256910414,31.27,191.91,191.83,7.85363457]
[1722256910740,20.0,191.9,191.83,7.85363457]
[1722256911243,15.64,191.89,191.83,7.85363457]
[1722256911442,20.0,191.9,191.83,7.85363457]
[1722256911639,31.27,191.93,191.83,7.85363457]
[1722256912219,46.91,191.92,191.83,7.85363457]
[1722256912743,20.0,191.91,191.83,7.85363457]
[1722256913841,15.64,191.9,191.83,7.85363457]
[1722256914049,20.0,191.89,191.83,7.85363457]
[1722256915843,66.91,191.89,191.83,7.85363457]
[1722256916910,0.17,191.88,191.83,7.85363457]
[1722256917115,66.91,191.89,191.83,7.85363457]
[1722256919337,66.91,191.89,191.83,8.57776376]
[1722256920447,46.91,191.93,191.83,8.57776376]
[1722256920624,46.91,191.93,191.85,25.96]
[1722256920818,46.91,191.93,191.84,1.21237349]
[1722256921027,46.91,191.93,191.85,25.96]
[1722256921951,15.64,191.96,191.87,6.3354]
[1722256922127,15.64,191.96,191.88,25.96]
[1722256923233,31.27,191.95,191.87,6.3354]
[1722256923418,46.91,191.94,191.87,6.3354]
[1722256923846,20.0,191.93,191.87,6.3354]
[1722256924451,35.64,191.93,191.87,6.3354]
[1722256925648,20.0,191.93,191.87,6.3354]
[1722256925826,35.64,191.96,191.87,6.3354]
[1722256926028,15.64,191.96,191.87,6.3354]
[1722256926340,31.27,191.97,191.87,6.3354]
[1722256926541,31.27,191.97,191.88,0.17]
[1722256926745,15.64,192.0,191.93,15.5101]
[1722256926944,15.64,192.0,191.94,6.1983]
[1722256927124,31.27,192.01,191.94,6.1983]
[1722256927320,25.96,192.1,191.94,6.1983]
[1722256927620,7.1838959,192.12,191.95,26.13]
[1722256927825,46.91,192.09,191.95,26.13]
[1722256928025,51.0747,192.09,191.95,25.96]
[1722256928239,46.91,192.07,191.94,6.1983]
[1722256929147,46.91,192.05,191.94,6.1983]
[1722256929329,46.91,192.03,191.94,6.1983]
[1722256929528,15.64,192.01,191.94,6.1983]
[1722256929721,20.0,192.0,191.94,6.1983]
[1722256930240,20.0,192.01,191.94,6.1983]
[1722256931026,20.0,192.02,191.94,6.1983]
[1722256931227,51.27,192.06,191.94,6.1983]
[1722256931427,0.34,192.05,191.94,6.1983]
[1722256931654,31.27,192.04,191.94,6.1983]
[1722256931835,15.64,192.03,191.94,6.1983]
[1722256932154,35.81,192.03,191.94,6.1983]
[1722256932937,20.0,192.03,191.94,6.1983]
[1722256933328,31.27,192.06,191.94,6.1983]
[1722256933329,20.0,192.05,191.94,6.1983]
[1722256934865,20.0,192.05,191.95,0.17]
[1722256935053,20.0,192.05,191.94,6.1983]
[1722256935364,66.91,192.05,191.94,6.1983]
[1722256935542,20.0,192.05,191.94,6.1983]
[1722256935734,20.0,192.08,191.95,0.17]
[1722256935930,7.1838959,192.09,191.98,16.0453]
[1722256936153,25.96,192.18,192.01,22.5791]
[1722256936352,30.1229,192.18,192.01,22.5791]
[1722256936560,2.06713368,192.23,192.04,25.96]
[1722256936875,20.0,192.3,192.07,25.96]
[1722256936876,25.96,192.24,192.07,25.96]
[1722256937159,25.96,192.24,192.08,1.38094224]
[1722256937539,15.64,192.23,192.08,1.38094224]
[1722256937837,15.64,192.23,192.08,1.21098258]
[1722256938174,5.214,192.29,192.08,1.21098258]
[1722256938175,8.16725246,192.39,192.16,25.96]
[1722256938370,0.9806712,192.42,192.23,21.4751]
[1722256938371,25.96,192.41,192.23,21.4751]
[1722256938549,41.6,192.41,192.23,21.4751]
[1722256938858,41.6,192.35,192.23,21.4751]
[1722256939064,15.64,192.34,192.23,21.4751]
[1722256939263,4.1593,192.34,192.23,21.4751]
[1722256939444,30.1191,192.35,192.23,21.4751]
[1722256939639,41.6,192.35,192.23,21.4751]
[1722256940043,45.7591,192.35,192.23,21.4751]
[1722256940342,24.1594,192.34,192.23,21.4751]
[1722256940548,20.0,192.34,192.23,21.4751]
[1722256940857,35.64,192.34,192.23,21.4751]
[1722256941067,20.0,192.34,192.23,21.4751]
[1722256943167,0.34,192.33,192.23,21.4751]
[1722256943464,4.4996,192.33,192.23,21.4751]
[1722256943655,6.11218864,192.33,192.23,21.4751]
[1722256943861,20.0,192.32,192.23,21.4751]
[1722256944044,0.17,192.31,192.23,21.4751]
[1722256944576,0.34,192.31,192.23,21.4751]
[1722256945356,25.96,192.29,192.18,15.7357]
[1722256945560,20.34,192.28,192.18,15.7357]
[1722256947373,20.0,192.28,192.19,6.5784]
[1722256947564,25.96,192.32,192.19,6.5784]
[1722256947565,20.0,192.31,192.19,6.5784]
[1722256947948,20.0,192.32,192.19,6.5784]
[1722256948155,15.64,192.32,192.19,6.5784]
[1722256948352,46.91,192.3,192.19,6.5784]
[1722256948861,35.64,192.29,192.19,6.5784]
[1722256949070,66.91,192.29,192.19,6.5784]
[1722256949241,0.17,192.28,192.19,6.5784]
[1722256949572,15.64,192.26,192.19,6.5784]
[1722256949785,35.64,192.25,192.19,6.5784]
[1722256950460,20.0,192.25,192.19,6.5784]
[1722256950759,46.91,192.3,192.19,6.5784]
[1722256951147,5.3922283,192.35,192.19,6.5784]
[1722256951148,0.90691104,192.37,192.3,6.6156]
[1722256951354,0.4893,192.38,192.31,15.6174]
[1722256951654,5.38624481,192.59,192.37,25.96]
[1722256951851,5.5748,192.76,192.31,1.20970998]
[1722256951852,20.0,192.72,192.48,25.96]
[1722256952068,5.5748,192.76,192.48,25.96]
[1722256952069,4.1526,192.65,192.49,1.99978502]
[1722256952278,30.1117,192.69,192.51,25.96]
[1722256952567,4.1522,192.67,192.52,0.17]
[1722256952940,41.6,192.69,192.51,0.17]
[1722256953136,15.64,192.69,192.51,0.17]
[1722256953341,4.1522,192.67,192.51,0.17]
[1722256953571,15.64,192.68,192.51,0.17]
[1722256953765,20.0,192.67,192.51,0.17]
[1722256954072,24.1522,192.67,192.51,0.17]
[1722256954275,86.91,192.67,192.5,1.65969879]
[1722256954461,19.7927,192.65,192.5,1.65969879]